[Event "Geneve Chess Masters 2013"]
[Site "Geneve"]
[Date "2013.06.26"]
[Round "1.2"]
[White "Kosteniuk, Alexandra"]
[Black "Bacrot, Etienne"]
[Result "1/2-1/2"]
[ECO "C67"]
[WhiteElo "2489"]
[BlackElo "2725"]
[Annotator "Robot 3"]
[PlyCount "69"]
[EventDate "2013.??.??"]
[EventCountry "SUI"]
[TimeControl "1500+10"]

1. e4 {[%emt 0:00:00]} e5 {[%emt 0:00:00]} 2. Nf3 {[%emt 0:00:00]} Nc6 {[%emt
0:00:00]} 3. Bb5 {[%emt 0:00:00]} Nf6 {[%emt 0:00:00]} 4. O-O {[%emt 0:00:00]}
Nxe4 {[%emt 0:00:00]} 5. d4 {[%emt 0:00:00]} Nd6 {[%emt 0:00:00]} 6. Bxc6 {
[%emt 0:00:00]} dxc6 {[%emt 0:00:01]} 7. dxe5 {[%emt 0:00:01]} Nf5 {[%emt 0:00:
02]} 8. Qxd8+ {[%emt 0:00:03]} Kxd8 {[%emt 0:00:02]} 9. Nc3 {[%emt 0:00:01]}
Ke8 {[%emt 0:00:07]} 10. h3 {[%emt 0:00:05]} h5 {[%emt 0:00:01]} 11. a4 {[%emt
0:00:06]} Be7 {[%emt 0:00:38]} 12. Ne4 {[%emt 0:01:49]} Be6 {[%emt 0:01:34]}
13. a5 {[%emt 0:00:24]} Rd8 {[%emt 0:00:33]} 14. c3 {[%emt 0:00:02]} Bd5 {
[%emt 0:04:02]} 15. Re1 {[%emt 0:00:03]} Bxe4 {[%emt 0:02:37]} 16. Rxe4 {[%emt
0:00:01]} Rd1+ {[%emt 0:00:01]} 17. Re1 {[%emt 0:00:01]} Rxe1+ {[%emt 0:00:02]}
18. Nxe1 {[%emt 0:00:01]} h4 {[%emt 0:00:03]} 19. Ra4 {[%emt 0:00:49]} Kd7 {
[%emt 0:00:43]} 20. Nd3 {[%emt 0:04:30]} c5 {[%emt 0:03:01]} 21. Re4 {[%emt 0:
02:12]} Kc6 {[%emt 0:00:51]} 22. Kf1 {[%emt 0:02:38]} Kb5 {[%emt 0:01:48]} 23.
e6 {[%emt 0:01:23]} fxe6 {[%emt 0:00:23]} 24. Rxe6 {[%emt 0:00:05]} Bd6 {[%emt
0:00:08]} 25. Re4 {[%emt 0:03:41]} Rf8 {[%emt 0:00:14]} 26. Ke2 {[%emt 0:01:09]
} Kxa5 {[%emt 0:00:08]} 27. Bg5 {[%emt 0:00:40]} b5 {[%emt 0:01:52]} 28. Ne5 {
[%emt 0:02:41]} Bxe5 {[%emt 0:03:32]} 29. Rxe5 {[%emt 0:00:01]} Kb6 {[%emt 0:
00:21]} 30. Re4 {[%emt 0:02:37]} Rh8 {[%emt 0:02:35]} 31. Re5 {[%emt 0:00:04]}
Rf8 {[%emt 0:00:05]} 32. Re4 {[%emt 0:00:03]} Rh8 {[%emt 0:00:01]} 33. Re5 {
[%emt 0:00:07]} Rf8 {[%emt 0:00:03]} 34. Re4 {[%emt 0:00:18]} Rh8 {[%emt 0:00:
02]} 35. Re5 {[%emt 0:00:40]} 1/2-1/2